Workbook

Sheet Sheet1 (hidden)
A1: Question | B1: Answer
A2: What is Excel used for? | B2: Developing spreadsheets for doing analyses by creating formulas, charts, filtering etc. Could also be used for maintaining a database
A3: What is the difference between a workbook and worksheet? | B3: A workbook is made up of multiple worksheets.
A4: How would you create a new workbook using a template? | B4: File, New
A5: How many worksheets automatically get inserted into a new workbook | B5: 3
A6: What is the purpose of a toolbars, menus and scrollbars? | B6: Toolbars are quicker to use. The same features can be found in the menu. You usually find that in the menu, there are more options eg. Printing 5 copies.
B8: Scroll bars enable you to move around on the spreadsheet (up, down, left, right)
A9: How are cell references made up and why do we have them? | B9: Each cell has a cell reference. It is determined by the row and column Number reference. Cell references are used in formulas to ensure that the formula automatically update.
A10: How do you get into page break preview? | B10: View, page break preview
A11: How do you know how to change your zoom level? | B11: On the Standard toolbar, select the zoom from the drop down
A12: Do you know how to select a:
A14: Cell | B14: Cell : Click on the cell
A15: Range | B15: Range : Click and drag
A16: Non adjacent | B16: Non adjacent : Hold CTRL and select cells
A17: Worksheets | B17: Worksheets : Click o the worksheet tabs
A18: How to select the entire worksheet? | B18: On the top left section of your spreadsheet, click on the blank block next to column A
A19: How do you formatting numbers to a currency?
B20: Format, Cell, Number, Currency
A21: Are you proficient with Copy & Paste, Cut & Paste | B21: Yes/No
A22: Are you proficient with using print preview? | B22: Yes/No
A23: How do you edit the contents of a cell? | B23: Double click on the cell, press F2
A24: What is the difference between save and save as? | B24: Save – When you initially save a file
B25: Save As- To create a copy of the file, change the location of the saved file
A27: If you have multiple workbooks open, how do you switch between them? | B27: On the Menu bar, click on WINDOW and switch between files
B29: On the Task bar, click on the file you want to activate
A30: Are you able to perform a spell check? | B30: Yes/No
A31: Do you know how to create a formula | B31: Type =
B32: Select the cell you want to calculate
B33: Type in the parenthesis e.g. +, *
B34: Select other cells as required and press enter
A36: Do you know how to use the Sum function? | B36: Used to add
B37: =SUM(range) -> 
A38: Do you know how to use the Auto Sum button? | B38: Used to quickly add columns and rows, click on the Auto Sum button found on the Standard toolbar
A39: Do you know how to copy formulas with the auto fill? | B39: Get your auto fill and drag down or across
A40: Do you know how to auto fit column and row widths? | B40: Place your mouse on the side of the column, when you get the double headed arrow, double click your mouse
B42: Fits to the longest work in that particular column
A43: Do you know how to change your page from portrait to landscape? | B43: File, page setup, page
A44: Can you use the Help facility? | B44: Yes/No

Sheet Sheet4 (hidden)
A6: 21. Where do change the Page Setup from Portrait to Landscape? | C6: Please select your Answer | D6: =IF(VLOOKUP(#REF!,Sheet3!$A:$B,2,0)=C6,1,0) -> 
A7: A. Look in the Menu File, then select Page Setup, then Page
A8: B. Look in the Menu View, then select Landscape under Setup
A9: C. Look in the Menu Window, then select Landscape under the Page link
A10: D. Any of the Above
A12: 22. How do you Lock the Row and Column Headings so that you can view the Headings while scrolling down and across the Worksheet? | C12: Please select your Answer | D12: =IF(VLOOKUP(#REF!,Sheet3!$A:$B,2,0)=C12,1,0) -> 
A13: A. Use the Lock view funtion
A14: B. Use the Freeze Panes which is found under the Menu Window
A15: C. Select Row and Column Lock under Print Setup
A16: D. Any of the Above
A18: 23. What symbol is used to create Absolute References in Formulas? | C18: Please select your Answer | D18: =IF(VLOOKUP(#REF!,Sheet3!$A:$B,2,0)=C18,1,0) -> 
A19: * Hint * Absolute References are used when creating formulas so that when you copy the formula down/across cells allowing the cell references to remain constant, i.e. they fix cell references
A20: A. The Question Mark (?)
A21: B. The Asterisk (*)
A22: C. The dolloar sign ($)
A23: D. All of the Above
A25: 24. Where would you find the "Print Titles" feature? | C25: Please select your Answer | D25: =IF(VLOOKUP(#REF!,Sheet3!$A:$B,2,0)=C25,1,0) -> 
A26: A. Select Menu File, then select Page Setup, then select Sheet
A27: B. Select Menu View, then select Print Titles
A28: C. Select Menu Window, then select Print Titles
A29: D. All of the Above

Sheet Quote Registration
E1: TRAINING QUOTE & REGISTRATION BOOKING FORM
C3: TRAINING QUOTE | F3: Excel Version | G3: Quantity | H3: Unit Price | I3: Sub Total | J3: Less: Group Discount | L3: Total | O3: Sage Intelligence | T3: 1 | U3: 6 | V3: 7 | W3: 8 | X3: 9 | Y3: 10
C4: Excel ABC's | H4: 1700 | I4: =SUM(H4*G4) -> 0 | J4: =IF(G4<6,0,I4-IFERROR(HLOOKUP(G4,$T$3:$Y$7,2,0),0)*G4) -> 0 | L4: =I4-J4 -> 0 | S4: ABC | T4: 1700 | U4: =8700/U3 -> 1450 | V4: =9850/V3 -> 1407.142857 | W4: =11000/W3 -> 1375 | X4: =12200/X3 -> 1355.555556 | Y4: =13300/Y3 -> 1330
C5: Discovering Excel | H5: 2000 | I5: =SUM(H5*G5) -> 0 | J5: =IF(G5<6,0,I5-IFERROR(HLOOKUP(G5,$T$3:$Y$7,3,0),0)*G5) -> 0 | L5: =I5-J5 -> 0 | O5: Flexcel Reporting CC | S5: DISC | T5: 2000 | U5: =9650/U3 -> 1608.333333 | V5: =10750/V3 -> 1535.714286 | W5: =12000/W3 -> 1500 | X5: =13000/X3 -> 1444.444444 | Y5: =14200/Y3 -> 1420
C6: Excel on Steroids - 3 Course Bundle | H6: 5100 | I6: 0 | J6: =IF(G6<6,0,I6-IFERROR(HLOOKUP(G6,$T$3:$Y$7,4,0),0)*G6) -> 0 | L6: 0 | O6: 29 Cuyler Street, Central, Port Elizabeth | S6: EOS | T6: 5100 | U6: =24500/U3 -> 4083.333333 | V6: =27900/V3 -> 3985.714286 | W6: =31300/W3 -> 3912.5 | X6: =34650/X3 -> 3850 | Y6: =38000/Y3 -> 3800
C7: Excel on Steroids - Plus | H7: 4050 | I7: 0 | J7: =IF(G7<6,0,I7-IFERROR(HLOOKUP(G7,$T$3:$Y$7,5,0),0)*G7) -> 0 | L7: 0 | O7: TEL: 041 585 0745 | S7: EOS Plus | T7: 4050 | U7: =19300/U3 -> 3216.666667 | V7: =21600/V3 -> 3085.714286 | W7: =23950/W3 -> 2993.75 | X7: =26300/X3 -> 2922.222222 | Y7: =28600/Y3 -> 2860
C8: SUB TOTAL (excl. Vat) | G8: =SUM(G5:G7) -> 0 | I8: =SUM(I4:I7) -> 0 | J8: =SUM(J4:K7) -> 0 | L8: =I8-J8 -> 0 | N8: Quote Ref
C9: Plus Vat @ 14% | L9: =SUM(L8*14%) -> 0 | N9: Date
C10: TOTAL (Incl. Vat) | F10: This quote is valid for 30 days from date hereof | L10: =SUM(L8:L9) -> 0 | O10: Vat No. 462 022 5427 | Q10: Discovering Excel
C11: To register, please complete Delegate's details below:-
C12: Delegate's Full Name (To appear on Certificate) | E12: Job Title | F12: Cell Number | G12: E-mail | I12: Dietary Requirements | J12: IQ Quiz Results | K12: Workshop Name | M12: Excel Version 2007/ 2010/ 2013 | N12: Training Dates | O12: VENUE - PE / ONSITE | Q12: Excel ABCs
B13: 1
B14: 2
B15: 3
B16: 4
B17: 5
B18: 6
B19: 7
B20: 8
B21: 9
B22: 10
C23: DIETARY REQUIRMENTS: | E23: Please indicate above : | F23: None | G23: NO Beef / Pork | H23: Halaal | I23: Vegetarian
C24: Who should we invoice?
C25: Title | E25: Full Name | L25: Job Title | Q25: Classroom (specify dates)
C26: Industry/Sector | L26: E-mail address | Q26: Online
C27: Company | L27: Company VAT Number
C28: Postal Address | L28: Order Number
C29: Telephone | F29: Cell No. | G29: =F13 ->  | L29: How did you hear about us?
Q30: 2007
Q31: 2010
C32: Have you completed the Course pre-assessment? | K32: Do you use Excel for reporting in your business? | Q32: 2013
K34: How many employees in your business? | L34: o <10 | M34: o <50 | N34: o <100 | O34: o >100
C35: What Accounting software does your business use?
C36: o Sage Pastel Partner | E36: o Sage ERP X3 | G36: o Sage VIP Payroll | I36: o SAP Business One
C37: o Sage Evolution | E37: o Sage 300 ERP | I37: o SYSPRO | L37: o Other - Please Specify
C39: Flexcel Reporting - Registration Process and Terms and Conditions apply
C40: 1. On receipt of this fully completed booking form, Flexcel Reporting cc, will send you an invoice.
C41: 2. Payment via bank transfer is required to book your seat, payment via Credit Card is not available. All training must be paid for before attending class.
C42: 3. The price includes: training manuals, pre and post assessments, refreshments (unless onsite or a special meal) and 30 days email support.
C43: 4. Upon completion of training you will be given 4 weeks access to our Sage Intelligence Academy in order to complete your post course assessment, thereafter we charge R350 per assessment for a 4 week extension.
C44: 5. Cancellations and Postponements
C45: a. Once booked and paid – you have 90 days to attend your training, thereafter we reserve the right to cancel your training at 100% cancellation fee.
C46: b. Postponements must be emailed to emma@flexcel.co.za at least 5 working days prior to course commencement date or full course fees will be payable. We only accept 2 postponements – thereafter 100% cancellation fee applies.
C47: c. Cancellations are only accepted upon written notification, at least 10 working days prior to the course commencement date, failing which a 20% cancellation fee will be levied.
C48: d. Failure to cancel, within 5 working days of the course commencement date, will incur full course fees. Substitutions can, however, be made at any time.
C49: e. We reserve the right to cancel or postpone any course, should there be an insufficient number of delegates booked, at 100% refund.
C50: 6. Classroom registration at 08h00, Workshops commence 08h30. Seats are allocated on a first-paid-first-served basis.
C52: Authorisation: | E52: I, the undersigned, confirm that I accept the Terms and Conditions above, and that I am duly authorised to sign and accept this Quote and Registration form,
E53: binding the company to the purchase of the listed Flexcel Reporting training courses.
C55: Full Name | G55: Job Title | L55: Signature
C56: Please return signed and completed form to the following email:-
C57: Account Executive: | E57: Emma Van Der Merwe | G57: Tel: 041 585 0745 | I57: Cell: 078 174 1401 | M57: Email: emma@flexcel.co.za
O58: Fin doc: 2016
C59: Excel on Steroids
C60: Discovering Excel
C61: Excel ABCs
C62: Alchemex Basic & Advanced Report Writing

Sheet Sheet3 (hidden)
A1: Question | B1: Answer | D1: Please select your Answer
A2: 1 | B2: B | D2: A
A3: 2 | B3: A | D3: B
A4: 3 | B4: D | D4: C
A5: 4 | B5: B | D5: D
A6: 5 | B6: B
A7: 6 | B7: D
A8: 7 | B8: C
A9: 8 | B9: D
A10: 9 | B10: A
A11: 10 | B11: A
A12: 11 | B12: A
A13: 12 | B13: A
A14: 13 | B14: A
A15: 14 | B15: C
A16: 15 | B16: B
A17: 16 | B17: C
A18: 17 | B18: A
A19: 18 | B19: B
A20: 19 | B20: D
A21: 20 | B21: C

Sheet Courses (hidden)
C4: Excel on Steroids
C5: Discovering Excel
C6: Excel ABCs
C7: Alchemex Basic & Advanced Report Writing
C8: Alchemex Advanced Customised Report Writing
C9: Pastel Accounting BIC Basic & Advanced Report Writing
C10: Pastel Accounting BIC Advanced Customised Report Writing
C11: Pastel Evolution BIC Basic & Advanced Report Writing
C12: Pastel Evolution BIC Advanced Customised Report Writing
C13: Sage Accpac Intelligence: Basic and Advanced Report Writing
C14: Sage Accpac Intelligence Connector: Advanced Customized Report Writing
